Workbook

Sheet photon sim
B1: Double-slit Photon Interference | C1: 0.17191277 | D1: 0.6312645078 | E1: angle | F1: phi | G1: delta | H1: Intensity (I/Io) | J1: =SUM(H:H) -> 18.09312869 | O1: 47 | P1: 149.8776419
C2: -0.130390614 | D2: 0.9650582075 | E2: -90 | F2: =PI()*$A$10*SIN(RADIANS(E2))/$A$8 -> -9.424777961 | G2: =PI()*$A$12*SIN(RADIANS(E2))/$A$8 -> 0 | H2: =(COS(RADIANS(E2))^2)*((SIN(F2))^2*(COS(G2))^2)/(F2^2) -> 5.706832553e-66 | O2: 98 | P2: 311.4512712
A3: Light intensity (pW/m^2) | C3: -0.0495208771 | D3: 0.6670698524 | E3: -89 | F3: =PI()*$A$10*SIN(RADIANS(E3))/$A$8 -> -9.423342521 | G3: =PI()*$A$12*SIN(RADIANS(E3))/$A$8 -> 0 | H3: =(COS(RADIANS(E3))^2)*((SIN(F3))^2*(COS(G3))^2)/(F3^2) -> 7.067569192e-12 | O3: 148 | P3: 437.3826366
A4: 500 | C4: -0.01665058248 | D4: 0.7015439272 | E4: -88 | F4: -9.419036641 | G4: 0 | H4: 4.525265901e-10 | O4: 192 | P4: 576.3416513
A5: Collection time (s) | C5: -0.03723142896 | D5: 0.6014464498 | E5: -87 | F5: -9.41186163 | G5: 0 | H5: 5.158262226e-09 | O5: 248 | P5: 793.3060895
A6: 10 | C6: 0.08352180844 | D6: 0.4177159071 | E6: -86 | F6: -9.401819675 | G6: 0 | H6: 2.901000474e-08 | O6: 308 | P6: 928.7491985
A7: Wavelength (nm) | C7: 0.00913740973 | D7: 0.9454650283 | E7: -85 | F7: -9.388913835 | G7: 0 | H7: 1.107887322e-07 | O7: 365 | P7: 1155.750496
A8: 400 | C8: -0.179599714 | D8: 0.5425903797 | E8: -84 | F8: -9.373148041 | G8: 0 | H8: 3.312189323e-07 | O8: 421 | P8: 1277.600774
A9: Slit Width (nm) | C9: -0.1869102785 | D9: 0.4419352412 | E9: -83 | F9: -9.354527095 | G9: 0 | H9: 8.362460332e-07 | O9: 477 | P9: 1527.125616
A10: 1200 | C10: -0.1279360949 | D10: 0.2733594179 | E10: -82 | F10: -9.33305667 | G10: 0 | H10: 1.865455544e-06 | O10: 535 | P10: 1682.816643
A11: Slit Separation (nm) | C11: -0.02420570001 | D11: 0.2776784301 | E11: -81 | F11: -9.308743305 | G11: 0 | H11: 3.785368976e-06
A12: 0 | C12: 0.01718425499 | D12: 0.7879755497 | E12: -80 | F12: -9.281594406 | G12: 0 | H12: 7.127080028e-06
C13: 0.06088903794 | D13: 0.1723358035 | E13: -79 | F13: -9.251618244 | G13: 0 | H13: 1.262731451e-05
C14: 0.03811620182 | D14: 0.2395427227 | E14: -78 | F14: -9.21882395 | G14: 0 | H14: 2.12714984e-05
C15: 0.1967013902 | D15: 0.2779622674 | E15: -77 | F15: -9.183221512 | G15: 0 | H15: 3.433679606e-05
C16: -0.1163833021 | D16: 0.2127057314 | E16: -76 | F16: -9.144821776 | G16: 0 | H16: 5.34323398e-05
C17: -0.001047308905 | D17: 0.8540320992 | E17: -75 | F17: -9.103636439 | G17: 0 | H17: 8.053302997e-05
C18: 0.006035180761 | D18: 0.7711725235 | E18: -74 | F18: -9.059678046 | G18: 0 | H18: 0.0001180023768
C19: -0.1324416018 | D19: 0.4527128339 | E19: -73 | F19: -9.012959988 | G19: 0 | H19: 0.000168598936
C20: 0.1019116016 | D20: 0.3180550337 | E20: -72 | F20: -8.963496494 | G20: 0 | H20: 0.000235460039
A21: Current time (s) | C21: -0.004202905125 | D21: 0.6023162007 | E21: -71 | F21: -8.911302633 | G21: 0 | H21: 0.0003220558493
A22: 10 | C22: 0.004860352213 | D22: 0.5615080595 | E22: -70 | F22: -8.856394302 | G22: 0 | H22: 0.000432106413
A23: Number of hits | C23: 0.1457040191 | D23: 0.9453421235 | E23: -69 | F23: -8.798788228 | G23: 0 | H23: 0.0005694545014
A24: 535 | C24: -0.02571365256 | D24: 0.8689395189 | E24: -68 | F24: -8.738501958 | G24: 0 | H24: 0.0007378878255
A25: Intensity *time | C25: 0.08280256769 | D25: 0.1953185201 | E25: -67 | F25: -8.675553856 | G25: 0 | H25: 0.0009409058691
A26: =A6*A4 -> 5000 | C26: 0.07410745076 | D26: 0.1070543528 | E26: -66 | F26: -8.609963095 | G26: 0 | H26: 0.001181429305
A27: Energy collected (eV) | C27: 0.06053887387 | D27: 0.4538033605 | E27: -65 | F27: -8.541749657 | G27: 0 | H27: 0.001461453929
A28: 1682.816643 | C28: -0.1024988286 | D28: 0.4189857244 | E28: -64 | F28: -8.470934319 | G28: 0 | H28: 0.001781656353
C29: 0.1331164634 | D29: 0.4837443233 | E29: -63 | F29: -8.397538652 | G29: 0 | H29: 0.0021409654
C30: 0.01278454642 | D30: 0.4892385006 | E30: -62 | F30: -8.321585014 | G30: 0 | H30: 0.002536121085
C31: -0.425979087 | D31: 0.7248269916 | E31: -61 | F31: -8.24309654 | G31: 0 | H31: 0.002961252002
C32: -0.0551828616 | D32: 0.04232895374 | E32: -60 | F32: -8.162097139 | G32: 0 | H32: 0.003407511312
C33: -0.04352501957 | D33: 0.9972350001 | E33: -59 | F33: -8.078611484 | G33: 0 | H33: 0.003862820608
C34: -0.08058529883 | D34: 0.441968441 | E34: -58 | F34: -7.992665006 | G34: 0 | H34: 0.004311778682
C35: -0.1432056828 | D35: 0.6997080445 | E35: -57 | F35: -7.904283885 | G35: 0 | H35: 0.004735797278
C36: 0.1297505815 | D36: 0.07432150841 | E36: -56 | F36: -7.813495042 | G36: 0 | H36: 0.005113526915
C37: -0.05486771394 | D37: 0.08900815248 | E37: -55 | F37: -7.720326134 | G37: 0 | H37: 0.00542163097
C38: -0.1295843004 | D38: 0.05062007904 | E38: -54 | F38: -7.624805538 | G38: 0 | H38: 0.005635953988
C39: -0.442738651 | D39: 0.8948319554 | E39: -53 | F39: -7.526962354 | G39: 0 | H39: 0.00573310912
C40: 0.03939626684 | D40: 0.5913543701 | E40: -52 | F40: -7.426826383 | G40: 0 | H40: 0.00569247874
C41: 0.05957414377 | D41: 0.2752583623 | E41: -51 | F41: -7.32442813 | G41: 0 | H41: 0.005498581538
C42: 0.1312935505 | D42: 0.1549136639 | E42: -50 | F42: -7.219798784 | G42: 0 | H42: 0.005143709501
C43: 0.1832902935 | D43: 0.08475714922 | E43: -49 | F43: -7.112970218 | G43: 0 | H43: 0.004630681419
C44: -0.1227120964 | D44: 0.810053587 | E44: -48 | F44: -7.003974973 | G44: 0 | H44: 0.003975499682
C45: 0.05464787831 | D45: 0.01261049509 | E45: -47 | F45: -6.892846249 | G45: 0 | H45: 0.003209639571
C46: -0.8269987786 | D46: 0.6864638329 | E46: -46 | F46: -6.779617897 | G46: 0 | H46: 0.002381652064
C47: 0.132906365 | D47: 0.4526248574 | E47: -45 | F47: -6.664324407 | G47: 0 | H47: 0.001557730846
C48: 0.02414390635 | D48: 0.6637484431 | E48: -44 | F48: -6.5470009 | G48: 0 | H48: 0.0008208907913
C49: -0.1013768055 | D49: 0.9309891462 | E49: -43 | F49: -6.427683113 | G49: 0 | H49: 0.000268437866
C50: 0.1523829775 | D50: 0.06652671099 | E50: -42 | F50: -6.306407392 | G50: 0 | H50: 7.486989179e-06
C51: 0.005193663468 | D51: 0.8871699572 | E51: -41 | F51: -6.183210677 | G51: 0 | H51: 0.0001484102342
C52: -0.02464424774 | D52: 0.809869349 | E52: -40 | F52: -6.058130497 | G52: 0 | H52: 0.0007962740704
C53: 0.07177614451 | D53: 0.09329557419 | E53: -39 | F53: -5.931204952 | G53: 0 | H53: 0.002040546917
C54: 0.1384985039 | D54: 0.8602467179 | E54: -38 | F54: -5.802472704 | G54: 0 | H54: 0.003943616187
C55: 0.153487586 | D55: 0.8058972359 | E55: -37 | F55: -5.671972967 | G55: 0 | H55: 0.006528928964
C56: -0.01771961279 | D56: 0.01378899813 | E56: -36 | F56: -5.539745491 | G56: 0 | H56: 0.009769836809
C57: 0.05075618853 | D57: 0.1456266642 | E57: -35 | F57: -5.405830556 | G57: 0 | H57: 0.01358045103
C58: 0.08118994042 | D58: 0.02419477701 | E58: -34 | F58: -5.270268952 | G58: 0 | H58: 0.01780996365
C59: -0.08167211822 | D59: 0.728405714 | E59: -33 | F59: -5.133101974 | G59: 0 | H59: 0.02224192434
C60: -0.0530270119 | D60: 0.4436466098 | E60: -32 | F60: -4.994371403 | G60: 0 | H60: 0.02659984994
C61: 0.0598024058 | D61: 0.585360527 | E61: -31 | F61: -4.854119497 | G61: 0 | H61: 0.03056025625
C62: -0.06680624899 | D62: 0.3795138001 | E62: -30 | F62: -4.71238898 | G62: 0 | H62: 0.03377372788
C63: -0.08295180874 | D63: 0.6297689676 | E63: -29 | F63: -4.569223024 | G63: 0 | H63: 0.03589398822
C64: 0.1815372261 | D64: 0.9730455279 | E64: -28 | F64: -4.424665238 | G64: 0 | H64: 0.03661412615
C65: 0.2634241241 | D65: 0.2980883121 | E65: -27 | F65: -4.278759656 | G65: 0 | H65: 0.03570823117
C66: -0.09695893336 | D66: 0.5087088943 | E66: -26 | F66: -4.131550723 | G66: 0 | H66: 0.03307576043
C67: 0.02616006494 | D67: 0.630828023 | E67: -25 | F67: =PI()*$A$10*SIN(RADIANS(E67))/$A$8 -> -3.983083279 | G67: =PI()*$A$12*SIN(RADIANS(E67))/$A$8 -> 0 | H67: =(COS(RADIANS(E67))^2)*((SIN(F67))^2*(COS(G67))^2)/(F67^2) -> 0.02878510497
C68: -0.05374531638 | D68: 0.8541864753 | E68: -24 | F68: -3.833402549 | G68: 0 | H68: 0.02311214561
C69: -0.5970282438 | D69: 0.7725269794 | E69: -23 | F69: -3.682554128 | G69: 0 | H69: 0.01656920177
C70: -0.1260431492 | D70: 0.9458965659 | E70: -22 | F70: -3.530583966 | G70: 0 | H70: 0.009919776723
C71: 0.03082380096 | D71: 0.4178702831 | E71: -21 | F71: -3.377538353 | G71: 0 | H71: 0.004174965658
C72: -0.02906193265 | D72: 0.3587370515 | E72: -20 | F72: -3.223463909 | G72: 0 | H72: 0.0005683532486
C73: 0.0637294865 | D73: 0.3773725033 | E73: -19 | F73: -3.068407567 | G73: 0 | H73: 0.0005076725916
C74: 0.1236848784 | D74: 0.5270373225 | E74: -18 | F74: -2.912416558 | G74: 0 | H74: 0.005503356567
C75: 0.2049759357 | D75: 0.05081260204 | E75: -17 | F75: -2.755538399 | G75: 0 | H75: 0.01707625877
C76: -0.113297926 | D76: 0.9941276908 | E76: -16 | F76: -2.597820876 | G76: 0 | H76: 0.03664907438
C77: -0.06826139605 | D77: 0.6684359312 | E77: -15 | F77: -2.439312032 | G77: 0 | H77: 0.06542813335
C78: -0.2056506102 | D78: 0.5698887706 | E78: -14 | F78: -2.28006015 | G78: 0 | H78: 0.1042840326
C79: -0.167608748 | D79: 0.6965708733 | E79: -13 | F79: -2.120113739 | G79: 0 | H79: 0.1536407891
C80: 0.07969977696 | D80: 0.6412636638 | E80: -12 | F80: -1.959521521 | G80: 0 | H80: 0.2133836348
C81: -0.5578641713 | D81: 0.5377999544 | E81: -11 | F81: -1.798332414 | G81: 0 | H81: 0.2827951044
C82: 0.1315386653 | D82: 0.857886374 | E82: -10 | F82: -1.636595518 | G82: 0 | H82: 0.3605276288
C83: 0.007490140566 | D83: 0.3556629419 | E83: -9 | F83: -1.474360098 | G83: 0 | H83: 0.4446184962
C84: 0.005771340559 | D84: 0.4094547629 | E84: -8 | F84: -1.311675575 | G84: 0 | H84: 0.5325499221
C85: 0.01546639125 | D85: 0.4747046232 | E85: -7 | F85: -1.148591502 | G85: 0 | H85: 0.6213533271
C86: -0.2516516829 | D86: 0.8436229825 | E86: -6 | F86: -0.9851575569 | G86: 0 | H86: 0.7077530788
C87: 0.1384110565 | D87: 0.7439073324 | E87: -5 | F87: -0.8214235234 | G87: 0 | H87: 0.7883412822
C88: 0.1260689902 | D88: 0.2384571433 | E88: -4 | F88: -0.6574392764 | G88: 0 | H88: 0.8597720669
C89: -0.1212219329 | D89: 0.1929847002 | E89: -3 | F89: -0.493254767 | G89: 0 | H89: 0.9189615738
C90: -0.08482752719 | D90: 0.603277266 | E90: -2 | F90: -0.3289200074 | G90: 0 | H90: 0.9632787387
C91: -0.03518006672 | D91: 0.3669667244 | E91: -1 | F91: -0.1644850556 | G91: 0 | H91: 0.9907121762
C92: 0.22773117 | D92: 0.08438533545 | E92: 0 | F92: 0 | G92: 0 | H92: 1
C93: 0.1198632214 | D93: 0.003759980202 | E93: 1 | F93: 0.1644850556 | G93: 0 | H93: 0.9907121762
C94: 0.4070724742 | D94: 0.7087560296 | E94: 2 | F94: 0.3289200074 | G94: 0 | H94: 0.9632787387
C95: -0.187646372 | D95: 0.8266673088 | E95: 3 | F95: 0.493254767 | G95: 0 | H95: 0.9189615738
C96: -0.09985200015 | D96: 0.7325986028 | E96: 4 | F96: 0.6574392764 | G96: 0 | H96: 0.8597720669
C97: -0.06777041733 | D97: 0.5807311535 | E97: 5 | F97: 0.8214235234 | G97: 0 | H97: 0.7883412822
C98: 0.1038925565 | D98: 0.4866939187 | E98: 6 | F98: 0.9851575569 | G98: 0 | H98: 0.7077530788
C99: 0.0358903193 | D99: 0.4945185781 | E99: 7 | F99: 1.148591502 | G99: 0 | H99: 0.6213533271
C100: 0.0952322687 | D100: 0.9436955452 | E100: 8 | F100: 1.311675575 | G100: 0 | H100: 0.5325499221
C101: -0.07546672402 | D101: 0.7099279761 | E101: 9 | F101: 1.474360098 | G101: 0 | H101: 0.4446184962
C102: 0.08835969023 | D102: 0.9310871363 | E102: 10 | F102: 1.636595518 | G102: 0 | H102: 0.3605276288
C103: -0.05846148338 | D103: 0.6226580739 | E103: 11 | F103: 1.798332414 | G103: 0 | H103: 0.2827951044
C104: -0.04776762244 | D104: 0.9053689241 | E104: 12 | F104: 1.959521521 | G104: 0 | H104: 0.2133836348
C105: 0.08883325436 | D105: 0.07074946165 | E105: 13 | F105: 2.120113739 | G105: 0 | H105: 0.1536407891
C106: -0.04333233571 | D106: 0.2557215691 | E106: 14 | F106: 2.28006015 | G106: 0 | H106: 0.1042840326
C107: 0.05718965752 | D107: 0.3106636405 | E107: 15 | F107: 2.439312032 | G107: 0 | H107: 0.06542813335
C108: 0.2318509346 | D108: 0.1348838806 | E108: 16 | F108: 2.597820876 | G108: 0 | H108: 0.03664907438
C109: 0.09209408706 | D109: 0.4646125436 | E109: 17 | F109: 2.755538399 | G109: 0 | H109: 0.01707625877
C110: 0.1850959792 | D110: 0.7675423622 | E110: 18 | F110: 2.912416558 | G110: 0 | H110: 0.005503356567
C111: 0.09935165876 | D111: 0.7410191894 | E111: 19 | F111: 3.068407567 | G111: 0 | H111: 0.0005076725916
C112: 0.1857970563 | D112: 0.7109570503 | E112: 20 | F112: 3.223463909 | G112: 0 | H112: 0.0005683532486
C113: -0.2390821036 | D113: 0.1528255343 | E113: 21 | F113: 3.377538353 | G113: 0 | H113: 0.004174965658
C114: 0.01215350208 | D114: 0.8895303011 | E114: 22 | F114: 3.530583966 | G114: 0 | H114: 0.009919776723
C115: 0.09868578526 | D115: 0.5960451961 | E115: 23 | F115: 3.682554128 | G115: 0 | H115: 0.01656920177
C116: -0.003221509457 | D116: 0.04714429379 | E116: 24 | F116: 3.833402549 | G116: 0 | H116: 0.02311214561
C117: 0.1060137643 | D117: 0.4693332314 | E117: 25 | F117: 3.983083279 | G117: 0 | H117: 0.02878510497
C118: -0.08949107596 | D118: 0.9428224564 | E118: 26 | F118: 4.131550723 | G118: 0 | H118: 0.03307576043
C119: 0.1608329796 | D119: 0.4518181682 | E119: 27 | F119: 4.278759656 | G119: 0 | H119: 0.03570823117
C120: 0.01757037174 | D120: 0.8112984896 | E120: 28 | F120: 4.424665238 | G120: 0 | H120: 0.03661412615
C121: 0.009961325192 | D121: 0.9302472472 | E121: 29 | F121: 4.569223024 | G121: 0 | H121: 0.03589398822
C122: 0.04986186575 | D122: 0.5639630556 | E122: 30 | F122: 4.71238898 | G122: 0 | H122: 0.03377372788
C123: 0.1616396677 | D123: 0.7905549407 | E123: 31 | F123: 4.854119497 | G123: 0 | H123: 0.03056025625
C124: 0.1591325304 | D124: 0.9111801386 | E124: 32 | F124: 4.994371403 | G124: 0 | H124: 0.02659984994
C125: 0.02687893118 | D125: 0.600050509 | E125: 33 | F125: 5.133101974 | G125: 0 | H125: 0.02224192434
C126: 0.1041028422 | D126: 0.644400835 | E126: 34 | F126: 5.270268952 | G126: 0 | H126: 0.01780996365
C127: 0.160938216 | D127: 0.5939653516 | E127: 35 | F127: 5.405830556 | G127: 0 | H127: 0.01358045103
C128: -0.09795867987 | D128: 0.6583106518 | E128: 36 | F128: 5.539745491 | G128: 0 | H128: 0.009769836809
C129: 0.129312221 | D129: 0.7330998778 | E129: 37 | F129: 5.671972967 | G129: 0 | H129: 0.006528928964
C130: 0.06705960299 | D130: 0.6085922718 | E130: 38 | F130: 5.802472704 | G130: 0 | H130: 0.003943616187
C131: -0.1016751004 | D131: 0.2771804929 | E131: 39 | F131: =PI()*$A$10*SIN(RADIANS(E131))/$A$8 -> 5.931204952 | G131: =PI()*$A$12*SIN(RADIANS(E131))/$A$8 -> 0 | H131: =(COS(RADIANS(E131))^2)*((SIN(F131))^2*(COS(G131))^2)/(F131^2) -> 0.002040546917
C132: 0.02384636052 | D132: 0.5162895918 | E132: 40 | F132: 6.058130497 | G132: 0 | H132: 0.0007962740704
C133: 0.1353256804 | D133: 0.962485373 | E133: 41 | F133: 6.183210677 | G133: 0 | H133: 0.0001484102342
C134: 0.4727608197 | D134: 0.4598054886 | E134: 42 | F134: 6.306407392 | G134: 0 | H134: 7.486989179e-06
C135: 0.1244211592 | D135: 0.2688927054 | E135: 43 | F135: 6.427683113 | G135: 0 | H135: 0.000268437866
C136: -0.08668639282 | D136: 0.9696561098 | E136: 44 | F136: 6.5470009 | G136: 0 | H136: 0.0008208907913
C137: -0.03975635535 | D137: 0.6962638497 | E137: 45 | F137: 6.664324407 | G137: 0 | H137: 0.001557730846
C138: 0.08469588797 | D138: 0.1210305691 | E138: 46 | F138: 6.779617897 | G138: 0 | H138: 0.002381652064
C139: -0.1771277804 | D139: 0.623524487 | E139: 47 | F139: 6.892846249 | G139: 0 | H139: 0.003209639571
C140: -0.0003288171708 | D140: 0.5700796843 | E140: 48 | F140: 7.003974973 | G140: 0 | H140: 0.003975499682
C141: -0.03558322353 | D141: 0.8241857886 | E141: 49 | F141: 7.112970218 | G141: 0 | H141: 0.004630681419
C142: -0.03575905458 | D142: 0.9585697651 | E142: 50 | F142: 7.219798784 | G142: 0 | H142: 0.005143709501
C143: 0.04900293388 | D143: 0.9073275924 | E143: 51 | F143: 7.32442813 | G143: 0 | H143: 0.005498581538
C144: -0.08817618178 | D144: 0.8398998976 | E144: 52 | F144: 7.426826383 | G144: 0 | H144: 0.00569247874
C145: 0.1237728876 | D145: 0.02313905954 | E145: 53 | F145: 7.526962354 | G145: 0 | H145: 0.00573310912
C146: -0.1491137184 | D146: 0.7390571833 | E146: 54 | F146: 7.624805538 | G146: 0 | H146: 0.005635953988
C147: -0.6374369904 | D147: 0.5804705024 | E147: 55 | F147: 7.720326134 | G147: 0 | H147: 0.00542163097
C148: 0.01427396088 | D148: 0.3658198118 | E148: 56 | F148: 7.813495042 | G148: 0 | H148: 0.005113526915
C149: 0.02733451898 | D149: 0.5873175859 | E149: 57 | F149: 7.904283885 | G149: 0 | H149: 0.004735797278
C150: 0.09440816599 | D150: 0.8323258758 | E150: 58 | F150: 7.992665006 | G150: 0 | H150: 0.004311778682
C151: -0.05549894554 | D151: 0.3627125025 | E151: 59 | F151: 8.078611484 | G151: 0 | H151: 0.003862820608
C152: 0.0006177493432 | D152: 0.4696419835 | E152: 60 | F152: 8.162097139 | G152: 0 | H152: 0.003407511312
C153: 0.07456322581 | D153: 0.2209088802 | E153: 61 | F153: 8.24309654 | G153: 0 | H153: 0.002961252002
C154: -0.06848890907 | D154: 0.8646835685 | E154: 62 | F154: 8.321585014 | G154: 0 | H154: 0.002536121085
C155: -0.09192799319 | D155: 0.5337415934 | E155: 63 | F155: 8.397538652 | G155: 0 | H155: 0.0021409654
C156: -0.4888449603 | D156: 0.02641898394 | E156: 64 | F156: 8.470934319 | G156: 0 | H156: 0.001781656353
C157: 0.1453705206 | D157: 0.4930927753 | E157: 65 | F157: 8.541749657 | G157: 0 | H157: 0.001461453929
C158: 0.2306762933 | D158: 0.05180686712 | E158: 66 | F158: 8.609963095 | G158: 0 | H158: 0.001181429305
C159: -0.04517341226 | D159: 0.6479082108 | E159: 67 | F159: 8.675553856 | G159: 0 | H159: 0.0009409058691
C160: 0.121476036 | D160: 0.3014711738 | E160: 68 | F160: 8.738501958 | G160: 0 | H160: 0.0007378878255
C161: -0.0221723141 | D161: 0.8908034563 | E161: 69 | F161: 8.798788228 | G161: 0 | H161: 0.0005694545014
C162: 0.1412687324 | D162: 0.5949894786 | E162: 70 | F162: 8.856394302 | G162: 0 | H162: 0.000432106413
C163: 0.2075004876 | D163: 0.7028203011 | E163: 71 | F163: 8.911302633 | G163: 0 | H163: 0.0003220558493
C164: -0.1952022386 | D164: 0.8964520097 | E164: 72 | F164: 8.963496494 | G164: 0 | H164: 0.000235460039
C165: -0.1853322931 | D165: 0.194380641 | E165: 73 | F165: 9.012959988 | G165: 0 | H165: 0.000168598936
C166: -0.01650995509 | D166: 0.7687192559 | E166: 74 | F166: 9.059678046 | G166: 0 | H166: 0.0001180023768
C167: -0.03710840341 | D167: 0.7694014311 | E167: 75 | F167: 9.103636439 | G167: 0 | H167: 8.053302997e-05
C168: 0.05799634565 | D168: 0.649400413 | E168: 76 | F168: 9.144821776 | G168: 0 | H168: 5.34323398e-05
C169: -0.01573865786 | D169: 0.1824278831 | E169: 77 | F169: 9.183221512 | G169: 0 | H169: 3.433679606e-05
C170: 0.08569563448 | D170: 0.9714288116 | E170: 78 | F170: 9.21882395 | G170: 0 | H170: 2.12714984e-05
C171: -0.00313424932 | D171: 0.03689622879 | E171: 79 | F171: 9.251618244 | G171: 0 | H171: 1.262731451e-05
C172: -0.01815816052 | D172: 0.545979917 | E172: 80 | F172: 9.281594406 | G172: 0 | H172: 7.127080028e-06
C173: 0.03731026269 | D173: 0.4071557522 | E173: 81 | F173: 9.308743305 | G173: 0 | H173: 3.785368976e-06
C174: -0.04557619457 | D174: 0.358302176 | E174: 82 | F174: 9.33305667 | G174: 0 | H174: 1.865455544e-06
C175: 0.02817678529 | D175: 0.9776699543 | E175: 83 | F175: 9.354527095 | G175: 0 | H175: 8.362460332e-07
C176: 0.1062062609 | D176: 0.6012323499 | E176: 84 | F176: 9.373148041 | G176: 0 | H176: 3.312189323e-07
C177: -0.03118370222 | D177: 0.9963353872 | E177: 85 | F177: 9.388913835 | G177: 0 | H177: 1.107887322e-07
C178: -0.05886445295 | D178: 0.2064645886 | E178: 86 | F178: 9.401819675 | G178: 0 | H178: 2.901000474e-08
C179: 0.1273316406 | D179: 0.8176358938 | E179: 87 | F179: 9.41186163 | G179: 0 | H179: 5.158262226e-09
C180: 0.005614047608 | D180: 0.07599633932 | E180: 88 | F180: 9.419036641 | G180: 0 | H180: 4.525265901e-10
C181: 0.1175139389 | D181: 0.8376059532 | E181: 89 | F181: 9.423342521 | G181: 0 | H181: 7.067569192e-12
C182: 0.102349962 | D182: 0.6592766643 | E182: 90 | F182: 9.424777961 | G182: 0 | H182: 5.706832553e-66
C183: 0.01572929519 | D183: 0.2034851313
C184: -0.04885425459 | D184: 0.3183936477
C185: 0.0345928397 | D185: 0.3700740337
C186: 0.1654611374 | D186: 0.1872448325
C187: 0.02258352282 | D187: 0.8105233908
C188: 0.0149759743 | D188: 0.9421717525
C189: -0.04024714681 | D189: 0.910556078
C190: 0.1049793759 | D190: 0.2002566457
C191: 0.07538751578 | D191: 0.4588660002
C192: 0.1778730494 | D192: 0.9098140597
C193: -0.0466806158 | D193: 0.7455191016
C194: -0.1064963166 | D194: 0.03009235859
C195: -0.1256570324 | D195: 0.9692195058
C196: 0.04572468661 | D196: 0.7408316135
C197: -0.01856150459 | D197: 0.8766115308
C198: -0.09245342655 | D198: 0.3293554783
C199: 0.0218122256 | D199: 0.3968147635
C200: 0.02212849678 | D200: 0.2030186653
... 335 more rows

Sheet Sheet2

Sheet Sheet3
